Cogmind - Beta 13 @@@ ROGUE MODE // 2024.06.27 @ 01:17:33 Player: Malth Result: Self-destructed Performance ------------- Evolutions (4) 2000 Regions Visited (6) 1200 Robots Destroyed (16) 80 Value Destroyed (321) 321 Prototype IDs (2) 40 Alien Tech Used (0) 0 Bonus (0) 0 TOTAL SCORE: 3641 Bonus ------- None Cogmind --------- Core Integrity 673/850 Matter 23/300 Energy 77/100 System Corruption 0% Temperature Cool (5) Movement Flying (29) Location -6/Factory Parts ------- > --- POWER (2) -------- (None) > --- PROPULSION (5) --- VTOL Module Cooled Cesium-ion Thruster > --- UTILITY (6) ------ Small Storage Unit Enhanced Optical Array Hacking Suite System Shield Improved System Shield > --- WEAPON (2) ------- (None) > --- INVENTORY (8) ---- VTOL Module Advanced Signal Interpreter Reaction Control System Improved Reaction Control System EM Pulse Cannon Rocket Launcher Peak State ------------ > --- POWER ------------ Light Ion Engine > --- PROPULSION ------- Flight Unit Flight Unit VTOL Module Cooled Cesium-ion Thruster > --- UTILITY ---------- Small Storage Unit Enhanced Optical Array Hacking Suite Improved Hacking Suite System Shield Improved System Shield > --- WEAPON ----------- Katana > --- INVENTORY -------- VTOL Module Advanced Signal Interpreter Reaction Control System Improved Reaction Control System EM Pulse Cannon Rocket Launcher [Rating: 38] Favorites ----------- Power Light Ion Engine Engine Light Ion Engine Propulsion Flight Unit Leg Aluminum Leg Hover Unit Hover Unit Flight Unit Flight Unit Utility Small Storage Unit Device Improved Reaction Control System Storage Small Storage Unit Processor Enhanced Optical Array Hackware Hacking Suite Protection Light Armor Plating Weapon Small Laser Energy Gun Small Laser Energy Cannon Heavy Particle Cannon Ballistic Gun Heavy Assault Rifle Launcher Rocket Launcher Slashing Weapon Katana Build | -11 -10 -10 -9 -8 -7 -6 ------- Run | Yrd Mat Min Mat Mat Fac Fac Slots Evolved 8 | . . . 2 2 2 2 Power 1 | . . . . . . 1 Propulsion 3 | . . . 1 1 1 . Utility 4 | . . . 1 1 1 1 Weapon . | . . . . . . . Parts Attached 32 | . 1 1 9 5 5 11 Power 4 | . . . 2 . 1 1 Engine 4 | . . . 2 . 1 1 Core . | . . . . . . . Reactor . | . . . . . . . Propulsion 12 | . . . 3 4 2 3 Treads . | . . . . . . . Leg . | . . . . . . . Wheel . | . . . . . . . Hover 2 | . . . . 2 . . Flight 10 | . . . 3 2 2 3 Utility 10 | . 1 . 3 . 2 4 Device 2 | . . . . . 1 1 Storage . | . . . . . . . Processor 1 | . . . . . . 1 Hackware 4 | . . . 1 . 1 2 Protection 3 | . 1 . 2 . . . Artifact . | . . . . . . . Weapon 6 | . . 1 1 1 . 3 Energy Gun 1 | . . 1 . . . . Energy Cannon 1 | . . . . 1 . . Ballistic Gun 1 | . . . 1 . . . Ballistic Cannon . | . . . . . . . Launcher 1 | . . . . . . 1 Special Weapon . | . . . . . . . Impact Weapon . | . . . . . . . Slashing Weapon 2 | . . . . . . 2 Piercing Weapon . | . . . . . . . Special Melee Weapon . | . . . . . . . Unidentified Prototypes 2 | . . . 1 . . 1 Parts Lost 12 | . . 1 2 2 . 7 Power 2 | . . . . 1 . 1 Propulsion 6 | . . . 1 1 . 4 Utility 2 | . . . 1 . . 1 Weapon 2 | . . 1 . . . 1 Highest Loss Streak 5 | . . 1 2 2 . 5 To Critical Strikes . | . . . . . . . Average Slot Usage (%) 78 | . 90 100 84 61 61 67 Engine 9 | . 14 14 11 7 7 5 Leg 12 | . 28 28 19 . . . Flight 11 | . . . 2 16 29 21 Storage 9 | . 14 14 11 9 7 6 Hackware 8 | . . . . 9 13 23 Protection 7 | . 4 14 18 . . . Energy Gun 12 | . 28 28 18 5 . . Ballistic Gun 1 | . . . 3 7 . . Naked Turns . | . . . . . . . Heaviest Build 20 | 11 14 13 20 17 9 12 Greatest Support 20 | 20 20 20 20 12 16 18 Greatest Overweight (x) 1 | . . . 1 1 . . Average Overweight (x) . | . . . . . . . Largest Inventory Capacity 8 | . 8 8 8 8 8 8 Average Capacity 8 | . 8 8 8 8 8 8 Most Carried 8 | . 8 8 8 8 4 8 Average Carried 6 | . 6 7 7 7 3 5 Final Capacity 8 | 8 8 8 8 8 8 8 Final Carried 8 | 6 8 8 8 5 4 6 Class Distribution -------------------- 50% | Mutant 18% | Scavenger-Sprinter 15% | Hacker-Sprinter 9% | Hacker-Mutant 5% | Scavenger-Mutant Dominant Class ---------------- Mutant | -10/Materials Mutant | -10/Mines Mutant | -9/Materials Scavenger-Mutant | -8/Materials Scavenger-Sprinter | -7/Factory Hacker-Sprinter | -6/Factory Resources | -11 -10 -10 -9 -8 -7 -6 ----------- Run | Yrd Mat Min Mat Mat Fac Fac Matter Collected 261 | 193 17 10 35 . . 6 Remotely . | . . . . . . . Salvage Created 331 | . 65 56 191 . . 19 Parts 31 | . 7 8 10 . . 6 Haulers Intercepted . | . . . . . . . Recyclers Shooed . | . . . . . . . Parts Field Recycled . | . . . . . . . Retrieved Matter . | . . . . . . . Parts Self-Destructed . | . . . . . . . Prevented . | . . . . . . . Kills | -11 -10 -10 -9 -8 -7 -6 ------- Run | Yrd Mat Min Mat Mat Fac Fac Combat Hostiles Destroyed 13 | . 3 3 3 . . 4 Guns 9 | . 3 3 3 . . . AOE 4 | . . . . . . 4 Classes Destroyed 4 | . 2 . 2 . . . Worker 2 | . . . 1 . . 1 Operator 1 | . 1 . . . . . Swarmer 10 | . 3 3 . . . 4 Sentry 3 | . . . 3 . . . Best Kill Streak 5 | . 2 3 3 . . 5 Combat Bots Only 4 | . 2 3 2 . . 4 Max Kills in Single Turn 2 | . 2 1 1 . . 1 Gunslinging 1 | . 1 . . . . . Exploded 1 | . . . . . . 1 Melee . | . . . . . . . Uniques/NPCs Destroyed . | . . . . . . . Combat | -11 -10 -10 -9 -8 -7 -6 -------- Run | Yrd Mat Min Mat Mat Fac Fac Hostile Shots Fired 211 | . 24 17 35 71 12 52 Missed 94 | . 11 1 3 36 9 34 Damage Taken 1663 | . 120 123 451 435 120 414 Core 637 | . 15 17 76 262 90 177 Absorbed by Shields . | . . . . . . . Core Remaining (%) 81 | 100 . 87 81 52 87 . Volleys Fired 45 | . 15 6 18 1 . 5 Largest 2 | . 2 2 2 2 . 1 Hottest 98 | . 80 80 80 98 . 33 Shots Fired 85 | . 30 12 36 2 . 5 Gun 79 | . 30 12 36 1 . . Cannon 1 | . . . . 1 . . Launcher 5 | . . . . . . 5 Special . | . . . . . . . Kinetic 5 | . . . 4 1 . . Thermal 57 | . 15 9 32 1 . . Explosive 5 | . . . . . . 5 Electromagnetic 18 | . 15 3 . . . . Robot Hit Streak 9 | . 3 2 9 3 . 1 Robot Miss Streak 5 | . 5 4 3 . . 2 Penetration Max . | . . . . . . . Secondary Targets 2 | . 1 1 . . . . Max Gunslinging Chain 1 | . 1 1 . . . . Shots Hit Robots 46 | . 13 5 25 2 . 1 Core Hits 23 | . 4 3 8 . . 8 Critical Kills . | . . . . . . . Critical Parts Destroyed . | . . . . . . . Critical Strikes . | . . . . . . . Melee Attacks 12 | . . . . . . 12 Impact . | . . . . . . . Slashing 12 | . . . . . . 12 Piercing . | . . . . . . . Sneak Attacks . | . . . . . . . Combat Hostiles . | . . . . . . . Follow-up Attacks . | . . . . . . . Damage Inflicted 1015 | . 157 62 297 37 . 462 Guns 514 | . 157 52 293 12 . . Cannons 25 | . . . . 25 . . Explosions 462 | . . . . . . 462 Melee . | . . . . . . . Ramming 14 | . . 10 4 . . . Kinetic 50 | . . . 38 12 . . Thermal 397 | . 85 32 255 25 . . Explosive 462 | . . . . . . 462 Electromagnetic 92 | . 72 20 . . . . Impact . | . . . . . . . Slashing . | . . . . . . . Piercing . | . . . . . . . Highest Corruption . | . . . . . . . Average Corruption . | . . . . . . . Corruption Purged . | . . . . . . . Corruption Blocked . | . . . . . . . Overload Shots . | . . . . . . . Overflow Damage 22 | . . . . . . 22 Projectiles . | . . . . . . . Explosions 22 | . . . . . . 22 Melee . | . . . . . . . Knockbacks . | . . . . . . . Impact . | . . . . . . . Kinetic . | . . . . . . . Secondary . | . . . . . . . Self-Inflicted Damage . | . . . . . . . Shots . | . . . . . . . Rammed . | . . . . . . . Targets Rammed 3 | . . 2 1 . . . Kicked 3 | . . 2 1 . . . Crushed . | . . . . . . . Highest Temperature 393 | . 198 145 393 33 . . Average Temperature 112 | . 84 74 148 19 . . Received Heat Transfer 321 | . . . 186 90 9 36 Effects 2 | . . . 2 . . . Shutdowns 2 | . . . 2 . . . Siege Activations . | . . . . . . . Robots Corrupted . | . . . . . . . Combat Hostiles . | . . . . . . . Parts Fried . | . . . . . . . Impact Corruptions . | . . . . . . . Robots Melted . | . . . . . . . Combat Hostiles . | . . . . . . . Parts Melted 4 | . . . 4 . . . Heat Transferred 887 | . 200 75 575 37 . . Parts Sabotaged . | . . . . . . . Parts Stolen . | . . . . . . . Parts Stripped . | . . . . . . . Power Chain Reactions . | . . . . . . . Alert | -11 -10 -10 -9 -8 -7 -6 ------- Run | Yrd Mat Min Mat Mat Fac Fac Peak Influence 267 | . 105 100 267 172 106 249 Initial 112 | . . 40 39 112 68 51 Average 115 | . 68 96 143 149 75 130 Maximum Alert Level 1 | . . . 1 . . 1 Low Security (%) 83 | . 100 100 68 100 100 67 Level 1 16 | . . . 31 . . 32 Level 2 . | . . . . . . . Level 3 . | . . . . . . . Level 4 . | . . . . . . . Level 5 . | . . . . . . . High Security . | . . . . . . . Max Security . | . . . . . . . Squads Dispatched 7 | . . . 2 2 1 2 Investigation 2 | . . . 1 . . 1 Extermination . | . . . . . . . Reinforcement 5 | . . . 1 2 1 1 Assault . | . . . . . . . Garrison . | . . . . . . . Intercept . | . . . . . . . Searches Triggered . | . . . . . . . Construction Impeded . | . . . . . . . Haulers Reinforced . | . . . . . . . Active Scanning Responses . | . . . . . . . Cargo Convoy Interrupts . | . . . . . . . Stealth | -11 -10 -10 -9 -8 -7 -6 --------- Run | Yrd Mat Min Mat Mat Fac Fac Distress Signals 3 | . 1 . 1 . 1 . Communications Jammed . | . . . . . . . Distress Signals . | . . . . . . . Times Spotted 63 | . 6 2 13 11 10 21 Peak Tracking Total 13 | . 3 2 5 8 8 13 Tactical Retreats 5 | . 1 . 1 1 . 2 Traps | -11 -10 -10 -9 -8 -7 -6 ------- Run | Yrd Mat Min Mat Mat Fac Fac Traps Triggered 2 | . 1 . . . 1 . Indirectly . | . . . . . . . Trap Hack Attempts . | . . . . . . . Triggered . | . . . . . . . Disarmed . | . . . . . . . Reprogrammed . | . . . . . . . Reused . | . . . . . . . Traps Extracted . | . . . . . . . Installed . | . . . . . . . Triggered . | . . . . . . . Machines | -11 -10 -10 -9 -8 -7 -6 ---------- Run | Yrd Mat Min Mat Mat Fac Fac Machines Disabled . | . . . . . . . Max in Single Turn . | . . . . . . . Machines Repaired . | . . . . . . . Machines Dismantled . | . . . . . . . Machines Sabotaged . | . . . . . . . Overloaded Fab Kills . | . . . . . . . Hacking | -11 -10 -10 -9 -8 -7 -6 --------- Run | Yrd Mat Min Mat Mat Fac Fac Machines Accessed 11 | . . . 1 . 6 4 Terminals 8 | . . . 1 . 5 2 Fabricators 1 | . . . . . . 1 Repair Stations . | . . . . . . . Recycling Units . | . . . . . . . Scanalyzers 1 | . . . . . . 1 Garrison Access 1 | . . . . . 1 . Total Hacks 42 | . . . 5 . 19 18 Successful 21 | . . . 3 . 6 12 Failed 21 | . . . 2 . 13 6 Catastrophic 1 | . . . . . 1 . Database Lockouts . | . . . . . . . Manual 29 | . . . 3 . 18 8 Terminals 34 | . . . 5 . 18 11 Fabricators 4 | . . . . . . 4 Repair Stations . | . . . . . . . Recycling Units . | . . . . . . . Scanalyzers 3 | . . . . . . 3 Garrison Access 1 | . . . . . 1 . Terminal Hacks 4 | . . . 1 . . 3 Robot Analysis 1 | . . . . . . 1 Alert Level 1 | . . . . . . 1 Locate Traps 2 | . . . 1 . . 1 Fabricator Hacks 2 | . . . . . . 2 Load Schematic 1 | . . . . . . 1 Build 1 | . . . . . . 1 Repair Station Hacks . | . . . . . . . Recycling Unit Hacks . | . . . . . . . Scanalyzer 2 | . . . . . . 2 Insert Component 1 | . . . . . . 1 Analyze 1 | . . . . . . 1 Garrison Access Hacks . | . . . . . . . Unauthorized Hacks 13 | . . . 2 . 6 5 Terminals 13 | . . . 2 . 6 5 Track 5 | . . . 1 . 2 2 Assimilate 1 | . . . . . 1 . Botnet 6 | . . . 1 . 3 2 Operators 1 | . . . . . . 1 Fabricators . | . . . . . . . Repair Stations . | . . . . . . . Recycling Units . | . . . . . . . Scanalyzers . | . . . . . . . Garrison Access . | . . . . . . . Data Cores Recovered 1 | . 1 . . . . . Used . | . . . . . . . Hacking Detections 10 | . . . 1 . 6 3 Full Trace Events 2 | . . . 1 . . 1 Feedback Events . | . . . . . . . Feedback Blocked . | . . . . . . . Robot Schematics Acquired . | . . . . . . . Robots Built . | . . . . . . . Authchips . | . . . . . . . Time . | . . . . . . . Total Robot Build Rating . | . . . . . . . Part Schematics Acquired 1 | . . . . . . 1 Parts Built 2 | . . . . . . 2 Authchips . | . . . . . . . Time 20 | . . . . . . 20 Total Part Build Rating 4 | . . . . . . 4 Parts Repaired . | . . . . . . . Time . | . . . . . . . Parts Recycled . | . . . . . . . Recycled Matter . | . . . . . . . Retrieved Matter . | . . . . . . . Retrieved Components . | . . . . . . . Parts Scanalyzed 1 | . . . . . . 1 Part Schematics Acquired 1 | . . . . . . 1 Parts Damaged . | . . . . . . . Bothacking | -11 -10 -10 -9 -8 -7 -6 ------------ Run | Yrd Mat Min Mat Mat Fac Fac Used RIF Installer . | . . . . . . . Robots Hacked . | . . . . . . . Non-combat . | . . . . . . . Combat . | . . . . . . . Robot Hacks Applied . | . . . . . . . Relay Couplers Released . | . . . . . . . Fabnet Peak Effective % . | . . . . . . . Robots Rewired . | . . . . . . . Allies Hacked . | . . . . . . . Hacks Repelled . | . . . . . . . Allies | -11 -10 -10 -9 -8 -7 -6 -------- Run | Yrd Mat Min Mat Mat Fac Fac Total Allies 1 | . . . . . 1 . Largest Group 1 | . . . . . 1 . Highest-Rated Group 10 | . . . . . 10 . Highest-Rated Ally 10 | . . . . . 10 . Total Orders 2 | . . . . . 2 . STAY 1 | . . . . . 1 . FOLLOW 1 | . . . . . 1 . Ally Attacks . | . . . . . . . Total Damage . | . . . . . . . Kills . | . . . . . . . Allies Corrupted . | . . . . . . . Allies Melted . | . . . . . . . Intel | -11 -10 -10 -9 -8 -7 -6 ------- Run | Yrd Mat Min Mat Mat Fac Fac Robot Analysis Total 1 | . . . . . . 1 Derelict Logs Recovered . | . . . . . . . Drone Launches . | . . . . . . . Drone Recoveries . | . . . . . . . Exploration | -11 -10 -10 -9 -8 -7 -6 ------------- Run | Yrd Mat Min Mat Mat Fac Fac Turns Passed 1161 | . 169 153 296 89 139 315 Spaces Moved 1643 | 1 96 103 194 168 423 658 Core . | . . . . . . . Treads . | . . . . . . . Legs 350 | 1 96 103 150 . . . Wheels . | . . . . . . . Hover 35 | . . . . 35 . . Flight 1258 | . . . 44 133 423 658 Fastest Speed 26 | 120 120 120 34 34 31 26 Average Speed 51 | 120 120 120 101 43 31 32 Slowest Speed 190 | 120 120 120 190 116 31 37 Overloaded Moves 2 | . . . . . . 2 Propulsion Burnouts . | . . . . . . . Robots Hopped 7 | . . . . 4 1 2 Cave-ins Triggered . | . . . . . . . Exploration Rate (%) 19 | 2 24 25 24 23 16 24 Regions Visited 6 Branch Regions 1 Pre-discovered Areas . | . . . . . . . Known Exits Taken . | . . . . . . . Unknown Exits Taken 6 | 1 1 1 1 1 1 . Scrap Searched . | . . . . . . . Spaces Dug 17 | . . . . . . 17 Terrain Destroyed 25 | . . . . . . 25 Melee 12 | . . . . . . 12 Projectile . | . . . . . . . AOE 13 | . . . . . . 13 Terrain Rammed . | . . . . . . . Walls Destroyed . | . . . . . . . Machines Disabled . | . . . . . . . Actions | -11 -10 -10 -9 -8 -7 -6 --------- Run | Yrd Mat Min Mat Mat Fac Fac Total 1842 | . 122 121 257 180 428 734 Wait 70 | . . 5 25 . . 40 Move 1623 | . 95 102 193 159 420 654 Hop 7 | . . . . 4 1 2 Pick Up 25 | . 7 3 5 3 2 5 Fast Attach 10 | . . . 3 . 2 5 Attach 19 | . 1 1 6 3 3 5 Detach 4 | . . . 1 . . 3 Swap 3 | . . . . 2 . 1 Drop 21 | . 4 2 5 8 . 2 Fire 45 | . 15 6 18 1 . 5 Melee 12 | . . . . . . 12 Ram . | . . . . . . . Kick 3 | . . 2 1 . . . Crush . | . . . . . . . Escape Stasis . | . . . . . . . Rewire . | . . . . . . . Trap . | . . . . . . . Miscellaneous . | . . . . . . . Route ------- -11/Scrapyard -10/Materials -10/Mines -9/Materials -8/Materials -7/Factory -6/Factory History --------- Turn | Location | Event 1 | -11/Scrapyard | Discovered new exit (range 0) 1 | -11/Scrapyard | Entered Materials 154 | -10/Materials | Discovered new exit (range 12) 170 | -10/Materials | Entered Mines 308 | -10/Mines | Build established: Mutant 308 | -10/Mines | Discovered new exit (range 15) 323 | -10/Mines | Entered Materials 323 | -9/Materials | Evolved 2 slots: Propulsion x1, Utility x1 615 | -9/Materials | Discovered new exit (range 11) 619 | -9/Materials | Entered another Materials area 619 | -8/Materials | Evolved 2 slots: Propulsion x1, Utility x1 707 | -8/Materials | Discovered new exit (range 4) 708 | -8/Materials | Entered Factory 708 | -7/Factory | Evolved 2 slots: Propulsion x1, Utility x1 843 | -7/Factory | Discovered new exit (range 16) 847 | -7/Factory | Entered another Factory area 847 | -6/Factory | Evolved 2 slots: Power x1, Utility x1 1126 | -6/Factory | Fabricated VTOL Module (x2) 1162 | -6/Factory | Self-destructed Last Messages --------------- Building VTOL Module... ETC: 20 01106_ ALERT: Unauthorized use of fabrication network. Dispatching investigation squad. 01126_ Fabricator completes VTOL Module. 01126_ Acquired VTOL Module. 01155_ ALERT: Suspicious intruders detected, dispatching Cutter reinforcements to area. 01156_ Katana destroyed. 01156_ Slug penetrates G-50 Soldier. 01156_ Imp. Hacking Suite destroyed. 01158_ Lgt. Ion Engine destroyed. 01158_ Flight Unit destroyed. 01158_ Knocked back. 01160_ Slug penetrates Door. 01160_ Slug penetrates Wall. 01160_ Acquired 6 matter. 01160_ Slug penetrates Wall. 01160_ Flight Unit destroyed. 01162_ VTOL Module severed. Map ----- +----------------------------------------------------+ | # #?????# """"""""" #???????# # | | # ####### #???????# # | | # + #???????#!! # | | ######### "F "" #???????#!/ """""" [ # | | ????????# """"" #???????# """""" # | | ????????# """"" #?####??# """""" # | | ????????# #?# ??# """""" # | | ????????##############?# ### """""" # | | ???????????????????????# """""" # | | ???????????????????????# """""" ######## | | ??????????????????????## """""" #??????? | | ??????????????????????# """""" #??????? | | ??????????????????????# #??????? | | ??????????????????????+ #??????? | | ??????????????????????# #??????? | | ??????????????????????# #??????? | | ??????????????????????# #####"##??????? | | ??????????????????????# #???# ##??????? | | ??????????????????????# ######"######## | | ??????????????????????# # | | ??????????????????????# + | | ??????????????????????# # !!= ! | | ??????????????????????# # !!= | | ??????????????????????### #### # !! | | ????????????????????????# #??# % # | | ????????????????????????#@#??# # """""" | | ????????????????????????#c#??# + ! | | ????????????????????????# #??# ############### | | ??????????????###########R##?# #?????????????? | | ??????????????# c### ###???????????? | | ??????????????# """ """ # #???????????? | | ??????????????# """ """ !c" #???????????? | | ??????????????# """ """ # #???????????? | | ??????????????# # #???????????? | | ??????????????# """ """ " H +???????????? | | ??????????????# """ """ # #???????????? | | ??????????????# """ """ # / #???????????? | | ??????????????? # #???????????? | | ??????????????# ! # #???????????? | | ??????????????# ## ##???????????? | | ??????????????# ## #????????????? | | ??????????????##############T #????????????? | | ????????????????????????????# #????????????? | | ????????????????????????????# #????????????? | | ????????????????????????????# #????????????? | | ????????????????????????????# #????????????? | | ????????????????????????????# #????????????? | | ????????????????????????????# #????????????? | | ????????????????????????????? #????????????? | | ????????????????????????????? #????????????? | +----------------------------------------------------+ Best States ------------- Heat Dissipation 37 Energy Generation 10 Energy Capacity 125 Matter Stores 300 Matter Capacity 300 Sight Range 22 Terrain Scan Density 10 Armor Coverage 300 Evasion (%) 73 Offensive Hacking 22 Defensive Hacking 22 Item Schematics ----------------- VTOL Module | -6/Factory | Scanalyzed Robot Schematics ------------------ None Fabricated ------------ VTOL Module | x2 | -6/Factory Alien Tech Used ----------------- None Achievements -------------- None Challenges ------------ None Game ------ Seed TeslaSapperKit Manual? 0 Play Time 00:32:11 Cumulative 398.2 hours Start 2024.06.27 @ 00:35:35 End 2024.06.27 @ 01:17:33 Sessions 1 Manual Loads 0 Difficulty Rogue Special Mode None Game No. 267 Rogue 267 Adventurer 0 Explorer 0 Win Type - Total 48 Types 37/4/4/1/2/0/0/0/0 Lore% 75 Gallery% 74 Achievement% 71 Wizard Run 0 Options --------- Layout 1 ASCII 0 Keyboard 0 Movement Mouse Keybinds 0 Fullscreen 1 Font 24/Smallcaps Map View 50x35 Zoom Use 0% Tactical HUD 1 Map Filters NONE Filters NONE Steam 1 RUN: 6c68bf38-a390-452f-9b6b-f0e89d8ae617